[Event "1st FIDE Olympiad DIS 2023"]
[Site "Belgrade"]
[Date "2023.02.03"]
[Round "5.30"]
[White "Osorio, Jesus Camilo"]
[Black "Nkhupi Robert"]
[Result "1-0"]
[ECO "D02"]
[WhiteElo "1859"]
[BlackElo "1738"]
[Annotator "NA COMBH"]
[PlyCount "95"]
[EventDate "2023.01.30"]
[EventType "team-tourn"]
[EventCountry "SRB"]
[SourceTitle "playchess.com"]
[Source "ChessBase"]
[SourceQuality "1"]
[WhiteTeam "Panama"]
[BlackTeam "Zambia"]
[WhiteTeamCountry "PAN"]
[BlackTeamCountry "ZAM"]
[TimeControl "40/5400+30:1800+30"]

1. d4 {[%emt 0:00:09]} c6 {[%emt 0:01:11]} 2. Nf3 {[%emt 0:00:37]} d5 {[%emt 0:00:57]} 3. c3 {[%emt 0:01:38]} Bf5 {[%emt 0:03:48]} 4. Bf4 {[%emt 0:01:04]} Nf6 {[%emt 0:01:34]} 5. Nbd2 {[%emt 0:01:38]} e6 {[%emt 0:01:07]} 6. Qb3 {[%emt 0:03:24]} Qb6 {[%emt 0:07:24]} 7. e3 {[%emt 0:06:15]} Nbd7 {[%emt 0:00:23]} 8. Be2 {[%emt 0:01:31]} c5 {[%emt 0:00:35]} 9. O-O {[%emt 0:06:29]} (9. Qxb6 $14 Nxb6 10. Nh4) 9... Be7 {[%emt 0:00:58]} (9... c4 $11 10. Qxb6 axb6) 10. h3 {[%emt 0:02:07]} (10. Nh4 $14) 10... O-O {[%emt 0:01:02]} (10... c4 $5 {[%cal Rc4b3]} 11. Qxb6 axb6 $11) 11. Nh4 {[%emt 0:03:07]} Bg6 {[%emt 0:05:10]} (11... Be4 $1 $11 {should be considered.}) 12. Nxg6 {[%emt 0:00:32]} hxg6 {[%emt 0:00:03]} 13. Qxb6 {[%emt 0:09:18]} axb6 {[%emt 0:03:11]} 14. Bb5 {[%emt 0:01:43]} Rfd8 $14 {[%emt 0:03:23]} 15. Bg5 {[%emt 0:09:43]} Kf8 {[%emt 0:01:31]} 16. Rfe1 {[%emt 0:00:47]} e5 {[%emt 0:00:59]} 17. Nf3 {[%emt 0:01:50]} e4 {[%emt 0:01:17]} 18. Nd2 {[%emt 0:00:15]} Nh5 {[%emt 0:02:11]} 19. Bxe7+ {[%emt 0:00:31]} Kxe7 {[%emt 0:00:03]} 20. b3 {[%emt 0:06:40]} f5 {[%emt 0:01:12]} 21. c4 {[%emt 0:05:38]} Rdc8 {[%emt 0:08:03]} 22. Bxd7 {[%emt 0:03:45]} Kxd7 {[%emt 0:00:12]} 23. cxd5 {[%emt 0:00:09]} cxd4 {[%emt 0:00:31]} 24. Nc4 {[%emt 0:03:31]} Rxc4 {[%emt 0:01:25]} 25. bxc4 {[%emt 0:00:12]} d3 {[%emt 0:00:03]} 26. Reb1 {[%emt 0:02:00]} Ra6 {[%emt 0:00:55]} 27. Kf1 {[%emt 0:01:07]} Kd6 {[%emt 0:00:15]} 28. Rb5 {[%emt 0:00:30]} Nf6 {[%emt 0:00:57]} 29. Ke1 {[%emt 0:02:49]} g5 {[%emt 0:01:24]} 30. Kd2 {[%emt 0:00:50]} Nd7 {[%emt 0:01:53]} 31. Kc3 {[%emt 0:02:06]} Kc7 {[%emt 0:07:16]} 32. d6+ {[%emt 0:01:05]} Kxd6 {[%emt 0:00:10]} 33. Rxf5 {[%emt 0:00:03]} Nc5 {[%emt 0:02:30]} 34. a3 {[%emt 0:02:34]} Ra5 {[%emt 0:03:42]} 35. Rd5+ {[%emt 0:00:50]} Kc6 {[%emt 0:00:39]} 36. f3 {[%emt 0:01:16]} b5 {[%emt 0:01:29]} 37. Rd8 {[%emt 0:02:40]} bxc4 {[%emt 0:01:08]} 38. Kxc4 {[%emt 0:01:21]} b5+ {[%emt 0:04:08]} 39. Kc3 {[%emt 0:01:00]} Ra4 {[%emt 0:00:38]} 40. Rc8+ {[%emt 0:03:15]} Kd6 {[%emt 0:01:15]} 41. Kb2 {[%emt 0:41:59]} Rc4 {[%emt 0:30:42]} 42. Rc1 {[%emt 0:01:29]} Kd5 {[%emt 0:04:30]} 43. fxe4+ {[%emt 0:00:00]} Nxe4 {[%emt 0:00:00]} 44. Rd8+ {[%emt 0:00:00]} Nd6 {[%emt 0:00:00]} 45. Rd1 {[%emt 0:00:00]} Ke5 {[%emt 0:00:00]} 46. Rxd3 {[%emt 0:00:00]} Nf5 {[%emt 0:00:00]} 47. R3d5+ {[%emt 0:00:00]} Kf6 {[%emt 0:00:00]} 48. Rf8+ {[%emt 0:00:00]} 1-0

[Event "1st FIDE Olympiad DIS 2023"]
[Site "Belgrade"]
[Date "2023.02.04"]
[Round "6.1"]
[White "Gruenfeld, Yehuda"]
[Black "Tazbir, Marcin"]
[Result "1/2-1/2"]
[ECO "B60"]
[WhiteElo "2414"]
[BlackElo "2507"]
[Annotator "TA"]
[PlyCount "78"]
[EventDate "2023.01.30"]
[EventType "team-tourn"]
[EventCountry "SRB"]
[SourceTitle "playchess.com"]
[Source "ChessBase"]
[SourceQuality "1"]
[WhiteTeam "Israel"]
[BlackTeam "Poland"]
[WhiteTeamCountry "ISR"]
[BlackTeamCountry "POL"]
[TimeControl "40/5400+30:1800+30"]

{[%evp 15,78,42,47,35,57,20,36,2,19,10,15,10,18,0,0,0,0,0,0,0,10,0,0,0,10,-13,-10,-12,-10,-10,-7,-11,-13,-11,-10,-22,-4,-4,-5,-5,-5,-5,-8,-18,-27,-29,-29,-29,-29,-29,-29,-29,-38,-47,-47,-48,-47,-49,-49,-49,-49,-16,-16,-49,-49]} 1. e4 {[%emt 0:00:30]} c5 {[%emt 0:00:08]} 2. Nf3 {[%emt 0:00:00]} Nc6 {[%emt 0:00:04]} 3. Nc3 {[%emt 0:01:00]} d6 {[%emt 0:01:47]} 4. d4 {[%emt 0:00:28]} cxd4 {[%emt 0:00:05]} 5. Nxd4 {[%emt 0:00:04]} Nf6 {[%emt 0:00:12]} 6. Bg5 {[%emt 0:00:18]} e6 {[%emt 0:00:08]} 7. Qd2 {[%emt 0:00:08]} Qb6 {[%emt 0:00:35]} 8. Nb3 {[%emt 0:12:09]} a6 {[%emt 0:03:10] Nowadays more popular than 8...Be7.} 9. Be2 {[%emt 0:06:12] B60: Sicilian: Richter-Rauzer: Unusual Black 6th moves and 6...Bd7 without 7 Qd2.} Qc7 {[%emt 0:02:01]} 10. a4 {[%emt 0:02:01]} Be7 {[%emt 0:06:32]} 11. a5 {[%emt 0:01:44] White is slightly better.} Bd7 {[%emt 0:04:18]} 12. O-O {[%emt 0:08:38] [#]} Rc8 $146 {[%emt 0:10:49]} ({Predecessor:} 12... Nb4 13. Be3 Bc6 14. Bb6 Qc8 15. Nd4 d5 16. Nxc6 Qxc6 17. exd5 Nbxd5 18. Nxd5 Nxd5 {1-0 Reichelt,M-Smikalla,R Bochum Post op 1992 (4)}) 13. f4 {[%emt 0:17:37]} O-O {[%emt 0:13:40]} 14. Rad1 {[%emt 0:13:57][%cal Oe4e5]} Rfd8 {[%emt 0:03:22]} 15. Bxf6 {[%emt 0:08:01]} Bxf6 {[%emt 0:01:51]} 16. Qxd6 {[%emt 0:01:11]} Qxd6 {[%emt 0:01:00]} 17. Rxd6 {[%emt 0:00:07]} Be7 {[%emt 0:00:57]} 18. Rd2 {[%emt 0:01:09]} Be8 {[%emt 0:00:41]} 19. Rxd8 {[%emt 0:01:21]} Rxd8 {[%emt 0:01:50]} 20. Rd1 {[%emt 0:04:38]} Rxd1+ {[%emt 0:03:05]} 21. Nxd1 {[%emt 0:03:16]} Bd8 {[%emt 0:04:09]} 22. e5 {[%emt 0:03:26]} Nxa5 {[%emt 0:02:38]} 23. Nxa5 {[%emt 0:00:05]} Bxa5 $11 {[%emt 0:00:04][%mdl 4096] Endgame KBB-KBN} 24. Bf3 {[%emt 0:00:15]} b5 {[%emt 0:00:19]} 25. Kf1 {[%emt 0:01:20]} g5 {[%emt 0:06:55]} 26. fxg5 {[%emt 0:00:03]} Bc7 {[%emt 0:00:12]} 27. Nf2 {[%emt 0:00:23]} Bxe5 {[%emt 0:01:06]} 28. b4 {[%emt 0:00:07]} Bxh2 {[%emt 0:03:44]} 29. Ng4 {[%emt 0:00:05]} Bd6 {[%emt 0:01:04]} 30. Nf6+ {[%emt 0:00:18]} Kf8 {[%emt 0:00:05]} 31. Bb7 {[%emt 0:01:04]} Bxb4 {[%emt 0:00:41] [#] ...a5 would be deadly.} 32. Nxe8 {[%emt 0:00:04]} Kxe8 {[%emt 0:00:24]} 33. Bxa6 {[%emt 0:00:07] KB-KB} Bd2 {[%emt 0:00:06]} 34. Bxb5+ {[%emt 0:00:07]} Kf8 $1 {[%emt 0:00:04]} 35. Bd3 {[%emt 0:00:45]} Kg7 {[%emt 0:00:25]} 36. g4 {[%emt 0:00:29]} Bxg5 {[%emt 0:00:16]} 37. Kg2 {[%emt 0:00:13]} Be3 {[%emt 0:01:35]} 38. Kf3 {[%emt 0:00:23]} Bb6 {[%emt 0:00:35]} 39. Bb5 {[%emt 0:01:49]} Kf6 {[%emt 0:00:54] Weighted Error Value: White=0.08 (flawless) /Black=0.02 (flawless)} 1/2-1/2

[Event "1st FIDE Olympiad DIS 2023"]
[Site "Belgrade"]
[Date "2023.02.04"]
[Round "6.1"]
[White "Jankunas, Tomas"]
[Black "Alam, Khorshed"]
[Result "1-0"]
[ECO "B19"]
[WhiteElo "2127"]
[BlackElo "2065"]
[Annotator "TA"]
[PlyCount "75"]
[EventDate "2023.01.30"]
[EventType "team-tourn"]
[EventCountry "SRB"]
[SourceTitle "playchess.com"]
[Source "ChessBase"]
[SourceQuality "1"]
[WhiteTeam "Lithuania"]
[BlackTeam "Bangladesh"]
[WhiteTeamCountry "LTU"]
[BlackTeamCountry "BAN"]
[TimeControl "40/5400+30:1800+30"]

{[%evp 29,75,37,35,0,27,35,19,21,52,35,56,41,177,169,159,165,261,256,722,634,547,352,357,355,340,321,385,338,504,528,457,485,760,749,699,664,1514,1498,2572,2402,2282,2520,2515,2365,2360,2384,29979,29980]} 1. e4 {[%emt 0:00:07]} c6 {[%emt 0:00:13]} 2. d4 {[%emt 0:00:23]} d5 {[%emt 0:00:06]} 3. Nd2 {[%emt 0:00:08]} dxe4 {[%emt 0:00:17]} 4. Nxe4 {[%emt 0:00:07]} Bf5 {[%emt 0:00:09]} 5. Ng3 {[%emt 0:00:28]} Bg6 {[%emt 0:00:05]} 6. h4 {[%emt 0:00:34]} h6 {[%emt 0:00:09]} 7. Nf3 {[%emt 0:00:18]} Nd7 {[%emt 0:00:16]} 8. h5 {[%emt 0:00:10]} Bh7 {[%emt 0:00:05]} 9. Bd3 {[%emt 0:00:13]} Bxd3 {[%emt 0:00:08]} 10. Qxd3 {[%emt 0:00:04]} e6 {[%emt 0:00:23]} 11. Bd2 {[%emt 0:03:23]} Ngf6 {[%emt 0:01:20]} 12. O-O-O {[%emt 0:00:55]} Qc7 {[%emt 0:00:25]} 13. Ne4 {[%emt 0:01:41]} Nxe4 {[%emt 0:00:32]} 14. Qxe4 {[%emt 0:00:04]} Nf6 {[%emt 0:00:06]} 15. Qe2 {[%emt 0:00:25]} Bd6 {[%emt 0:00:07]} 16. c4 {[%emt 0:07:34] 16.Kb1 is becoming the main line. B19: Classical Caro-Kann: 4...Bf5 main line.} Bf4 {[%emt 0:00:16]} 17. Ne5 {[%emt 0:01:12]} Bxd2+ {[%emt 0:00:35]} 18. Rxd2 {[%emt 0:00:16] The position is equal.} O-O-O {[%emt 0:01:09]} 19. Rhd1 {[%emt 0:06:37]} Rhe8 {[%emt 0:01:25] [#]} 20. g4 $146 {[%emt 0:01:46]} ({Predecessor:} 20. Rd3 Re7 21. Rg3 Rg8 22. Qf3 Ne8 23. Qa3 Kb8 24. Kb1 Nd6 25. Rc3 Rd8 26. g4 {1-0 Dvoirys,S (2535)-Perez Garcia,H (2245) Groningen op 1994 (8)}) 20... c5 {[%emt 0:00:51]} (20... Re7 $14) 21. dxc5 $18 {[%emt 0:08:49][%cal Bd4c5,Bc5c6][%mdl 32]} Rxd2 {[%emt 0:03:39]} 22. Rxd2 {[%emt 0:00:19]} Re7 {[%emt 0:00:27]} (22... Rd8 $142 23. Qe3 (23. Rxd8+ Kxd8 24. b4 Ke7 $16) 23... Rxd2 24. Kxd2 Ne8) 23. b4 {[%emt 0:08:28]} b6 $2 {[%emt 0:11:03] [#]} (23... Nd7) 24. Qf3 $1 {[%emt 0:13:32] Qa8+ would kill now.} Qb7 {[%emt 0:04:57] Wards off Qa8+} 25. Qxb7+ {[%emt 0:13:08]} Kxb7 {[%emt 0:00:02][%mdl 4096] Endgame KRN-KRN} 26. c6+ {[%emt 0:00:13]} Kc7 {[%emt 0:00:02]} 27. f3 {[%emt 0:00:19] Against Ne4} Ne8 {[%emt 0:01:32]} 28. Kc2 {[%emt 0:04:51]} f6 {[%emt 0:00:20]} (28... f5 {might work better.} 29. Ng6 Rf7) 29. Ng6 {[%emt 0:00:14]} Rf7 {[%emt 0:00:07]} 30. b5 {[%emt 0:00:40]} Nd6 {[%emt 0:00:35]} (30... e5 $142 31. Kc3 Nd6) 31. Nf4 {[%emt 0:02:05]} Re7 {[%emt 0:00:57]} 32. Re2 {[%emt 0:00:03] Nd5+ is the strong threat.} Nxc4 {[%emt 0:05:12]} 33. Nd5+ {[%emt 0:00:36][%mdl 64] [#] Pin, Double Attack} Kd6 {[%emt 0:02:12]} 34. Nxe7 {[%emt 0:00:09]} Kxe7 {[%emt 0:00:02]} 35. Kc3 {[%emt 0:01:03]} Nd6 {[%emt 0:01:03]} 36. a4 {[%emt 0:01:31]} e5 {[%emt 0:01:10]} 37. Rd2 {[%emt 0:01:04] Intending c7 and mate.} Ke6 {[%emt 0:00:26]} 38. c7 {[%emt 0:00:18] White took control after the opening.   Weighted Error Value: White=0.40/Black=0.75} 1-0

[Event "1st FIDE Olympiad DIS 2023"]
[Site "Belgrade"]
[Date "2023.02.04"]
[Round "6.2"]
[White "Molenda, Marcin"]
[Black "Streltsov, Alexey"]
[Result "1/2-1/2"]
[ECO "D27"]
[WhiteElo "2381"]
[BlackElo "2317"]
[Annotator "TA"]
[PlyCount "130"]
[EventDate "2023.01.30"]
[EventType "team-tourn"]
[EventCountry "SRB"]
[SourceTitle "playchess.com"]
[Source "ChessBase"]
[SourceQuality "1"]
[WhiteTeam "Poland"]
[BlackTeam "Israel"]
[WhiteTeamCountry "POL"]
[BlackTeamCountry "ISR"]
[TimeControl "40/5400+30:1800+30"]

{[%evp 12,130,39,14,17,0,0,0,0,0,0,0,0,0,0,0,0,0,0,7,9,0,0,0,0,0,-9,-20,-3,-29,-17,-17,-16,-16,-16,-9,-11,-27,-7,-12,0,-7,0,0,0,0,1,0,132,127,142,100,166,166,138,112,166,166,191,182,442,269,178,0,215,-11,-11,-29964,-20,-24,-28,-72,-72,-375,-358,-448,-288,-337,0,0,0,0,0,0,0,0,0,0,0,0,0,0,0,0,0,0,0,0,0,0,0,0,0,0,0,0,0,0,0,0,0,0,0,0,0,0,0,0,0,0,0]} 1. d4 {[%emt 0:00:02]} d5 {[%emt 0:00:06]} 2. c4 {[%emt 0:00:04]} dxc4 {[%emt 0:00:08]} 3. e3 {[%emt 0:00:04]} Nf6 {[%emt 0:00:27]} 4. Bxc4 {[%emt 0:00:09]} e6 {[%emt 0:00:12]} 5. Nf3 {[%emt 0:00:06]} c5 {[%emt 0:00:08]} 6. O-O {[%emt 0:00:16]} a6 {[%emt 0:00:07]} 7. Nbd2 {[%emt 0:01:13]} Nbd7 {[%emt 0:00:38] D27: Queen's Gambit Accepted: Classical main line: 7 e4!? and 7 a4.} 8. e4 {[%emt 0:01:05]} b5 {[%emt 0:00:40]} 9. e5 {[%emt 0:00:25]} bxc4 {[%emt 0:02:56]} 10. exf6 {[%emt 0:00:14]} Nxf6 {[%emt 0:00:12]} 11. Nxc4 {[%emt 0:00:21]} cxd4 {[%emt 0:01:47]} 12. Bf4 {[%emt 0:08:00][%cal Oa1c1]} Bc5 {[%emt 0:01:14]} 13. b4 {[%emt 0:01:50][%mdl 64] Deflection} Be7 {[%emt 0:00:05] [#]} 14. Nxd4 $146 {[%emt 0:02:40]} ({Predecessor:} 14. Nfe5 Bd7 15. Nxd7 Nxd7 16. Nd6+ Kf8 17. Qxd4 Bf6 18. Qe4 Bxa1 19. Rxa1 Ra7 20. Rc1 {1-0 Song,M (2408)-Sheng,J (2487) Charlotte CCCSA Spring GM-A 2022 (4)}) 14... Bb7 {[%emt 0:00:24] Dodges Nc6} 15. Na5 {[%emt 0:14:32] Excellent horsemanship.} Bd5 {[%emt 0:00:11]} 16. Ndc6 {[%emt 0:07:37]} Qd7 {[%emt 0:03:51]} 17. Nxe7 {[%emt 0:03:52]} Qxe7 {[%emt 0:00:18]} 18. Qd4 {[%emt 0:01:43]} O-O {[%emt 0:05:18]} 19. Bg5 {[%emt 0:04:42]} Rfd8 {[%emt 0:12:59][%cal Od5g2]} 20. Qh4 {[%emt 0:02:11]} Rac8 {[%emt 0:02:52]} 21. Rfc1 {[%emt 0:02:06]} h6 {[%emt 0:09:10]} 22. Bxf6 {[%emt 0:01:05]} Qxf6 {[%emt 0:00:05]} 23. Qxf6 {[%emt 0:00:07]} gxf6 {[%emt 0:00:03]} 24. a3 {[%emt 0:00:49]} Kg7 {[%emt 0:10:29]} 25. f3 {[%emt 0:01:48]} Kg6 {[%emt 0:11:28]} 26. Kf2 {[%emt 0:00:21]} Kf5 {[%emt 0:00:09]} 27. Ke3 {[%emt 0:00:27]} h5 {[%emt 0:01:53]} 28. a4 {[%emt 0:06:38]} h4 {[%emt 0:06:57]} 29. b5 {[%emt 0:02:56][%cal Bb4b5,Bb5b6,Bb6b7][%mdl 32]} Ke5 {[%emt 0:19:56]} (29... axb5 $11 {remains equal.} 30. axb5 Rxc1 31. Rxc1 Rg8) 30. b6 $1 $16 {[%emt 0:03:59]} (30. bxa6 $6 f5 $14) 30... Kd6 {[%emt 0:01:45]} 31. b7 {[%emt 0:06:30]} Rxc1 {[%emt 0:00:16]} (31... Rc7 $16) 32. Rxc1 {[%emt 0:00:02][%mdl 4096] Endgame Hoping for Rc8. KRB-KRN} Kd7 {[%emt 0:00:04] Inhibits Rc8.} 33. h3 {[%emt 0:12:19]} f5 {[%emt 0:00:32]} (33... Rb8 $16) 34. Kf4 $1 $18 {[%emt 0:05:13]} f6 {[%emt 0:00:05]} 35. g3 $1 {[%emt 0:01:50]} e5+ $2 {[%emt 0:00:25]} (35... hxg3 36. Kxg3 Re8) 36. Kxf5 {[%emt 0:00:09]} hxg3 {[%emt 0:00:06]} 37. Kxf6 $2 {[%emt 0:01:40]} ({Better is} 37. Nc6 $1 $18 {[%cal Rc6d8]} Bxc6 38. Rd1+ Ke7 39. Rxd8 Bxb7 40. Rg8) 37... Bxf3 $2 {[%emt 0:02:28] [#]} (37... Rf8+ $11 {and Black is okay.} 38. Kxe5 Bxf3) 38. Kxe5 $2 {[%emt 0:03:19]} ({White must play} 38. Rc3 $1 $18 {[%cal Rc3d3] Rd3+ would be deadly.} Bd5 39. Nc6 (39. Rxg3 Kd6 $16) (39. Kxe5 g2 $11) 39... Rf8+ 40. Kg7 Rg8+ 41. Kh7) 38... g2 $11 {[%emt 0:01:21]} 39. Kd4 $2 {[%emt 0:02:29][%mdl 8192] [#]} (39. Nb3 $11 Rh8 40. Nc5+ Kc7 41. Rg1 (41. Nxa6+ $2 Kxb7 42. Nc5+ Ka7 $17) (41. Rb1 Be2 $11)) 39... Rg8 $2 {[%emt 0:01:52]} (39... Bd1 $1 {mates} 40. Kd3 g1=Q 41. Rc8 Qf1+ 42. Ke4 Rxc8 43. bxc8=R Kxc8 44. Kd4 Qf2+ 45. Kd3 Qe2+ 46. Kc3 Qe5+ 47. Kd3 Qxa5 48. Ke4 Kd7 49. Kf4 Qe1 50. h4 Ke7 51. Kf5 Qxh4 52. Kg6 Bc2+ 53. Kg7 Qh7#) 40. Rg1 {[%emt 0:02:25]} Kc7 {[%emt 0:00:18][%cal Oc7b8][%mdl 1024] Black has compensation.} 41. Ke3 {[%emt 0:30:23]} Bd5 {[%emt 0:15:57]} (41... Bxb7 42. Nxb7 Rg3+ 43. Kf4 (43. Kf2 Rxh3 44. Na5 Kb6 $11) 43... Rxh3 44. Nc5 $11) 42. Kf2 $2 {[%emt 0:00:00][%mdl 8192]} (42. Kd4 $17) 42... Rf8+ $19 {[%emt 0:03:20]} 43. Kg3 {[%emt 0:00:00]} (43. Ke2 Kb6 $19) 43... Kb6 {[%emt 0:00:20]} ({Weaker is} 43... Bxb7 44. Nxb7 Kxb7 45. Rxg2 $16 (45. Kxg2 Rf4 $16)) 44. Rd1 {[%emt 0:00:00][%cal Og3h2]} Bxb7 $2 {[%emt 0:00:13]} (44... g1=R+ $19 45. Rxg1 Kxa5) 45. Nxb7 {[%emt 0:00:00] KRN-KR. The position is equal.} Rf1 {[%emt 0:00:54]} ({Don't play} 45... Rg8+ 46. Kh2 Kxb7 47. Rg1 $16) 46. Rd6+ {[%emt 0:00:00]} Kxb7 {[%emt 0:00:03]} 47. Kxg2 $11 {[%emt 0:00:00] KR-KR} Rf4 {[%emt 0:00:07]} 48. Kg3 {[%emt 0:00:00]} Rxa4 {[%emt 0:00:06]} 49. h4 {[%emt 0:00:00]} Ra1 {[%emt 0:10:24]} 50. Rd2 {[%emt 0:00:00]} Kc6 {[%emt 0:02:11]} 51. h5 {[%emt 0:00:00]} Re1 {[%emt 0:00:04]} 52. h6 {[%emt 0:00:00]} a5 {[%emt 0:00:50]} 53. Rh2 {[%emt 0:00:00]} Re8 {[%emt 0:00:09]} 54. Rh5 {[%emt 0:00:00]} (54. h7 $5 Rh8 $8 55. Rh6+ Kd5 56. Rh4 $11) 54... Kb6 {[%emt 0:02:11]} 55. Kf4 {[%emt 0:00:00]} (55. h7 $5 Rh8 $8 56. Rh6+ Kc5 57. Rh5+ Kb6 58. Rh4 $11 (58. Rh6+ Kc5 $11)) 55... a4 {[%emt 0:00:08]} 56. Kf5 {[%emt 0:00:00]} Kb5 {[%emt 0:00:07]} 57. Kf6+ {[%emt 0:00:00]} Kb4 {[%emt 0:00:05]} 58. h7 {[%emt 0:00:00]} Rh8 {[%emt 0:00:40]} 59. Kg7 {[%emt 0:00:39]} Rxh7+ {[%emt 0:00:16]} 60. Rxh7 {[%emt 0:00:00] KR-KP} a3 {[%emt 0:00:11]} 61. Kf6 {[%emt 0:00:00]} a2 {[%emt 0:00:17]} 62. Rh1 {[%emt 0:00:18]} Kc3 {[%emt 0:00:25]} 63. Ke5 {[%emt 0:00:17]} Kb2 {[%emt 0:00:06]} 64. Kd4 {[%emt 0:00:27]} a1=Q {[%emt 0:00:13]} 65. Rxa1 {[%emt 0:00:06]} Kxa1 {[%emt 0:00:00] Weighted Error Value: White=0.29 (precise) /Black=0.41} 1/2-1/2

[Event "1st FIDE Olympiad DIS 2023"]
[Site "Belgrade"]
[Date "2023.02.04"]
[Round "6.2"]
[White "Syed Ejaz Husain"]
[Black "Moldovanovic, Dragan"]
[Result "1-0"]
[ECO "A07"]
[WhiteElo "1952"]
[BlackElo "2019"]
[Annotator "TA"]
[PlyCount "95"]
[EventDate "2023.01.30"]
[EventType "team-tourn"]
[EventCountry "SRB"]
[SourceTitle "playchess.com"]
[Source "ChessBase"]
[SourceQuality "1"]
[BlackTeam "Serbia"]
[BlackTeamCountry "SRB"]
[TimeControl "40/5400+30:1800+30"]

{[%evp 12,95,4,6,50,8,2,0,0,0,1,2,3,20,22,24,18,4,64,52,86,59,56,51,55,49,85,77,115,106,92,95,121,116,137,75,99,73,179,183,258,188,179,190,549,539,535,550,537,548,539,537,579,387,370,372,772,739,764,587,617,611,584,597,615,507,512,498,497,479,625,615,679,679,696,680,914,581,910,873,29977,29978,29976,29958,5106,1435]} 1. e4 {[%emt 0:00:07]} e6 {[%emt 0:00:34]} 2. d3 {[%emt 0:00:16]} d5 {[%emt 0:00:09]} 3. Nd2 {[%emt 0:00:11]} Nf6 {[%emt 0:00:08]} 4. Ngf3 {[%emt 0:00:25]} Be7 {[%emt 0:00:31]} 5. g3 {[%emt 0:00:40]} O-O {[%emt 0:00:37]} 6. Bg2 {[%emt 0:00:22]} c6 {[%emt 0:01:59]} 7. O-O {[%emt 0:00:34]} Qb6 {[%emt 0:00:46] A07: Réti Opening: New York and Capablanca Systems.} 8. e5 {[%emt 0:03:19]} Nfd7 {[%emt 0:00:13]} 9. Re1 {[%emt 0:03:29]} c5 {[%emt 0:00:39] The position is equal.} ({Don't take} 9... f6 10. exf6 Nxf6 11. Nb3 $16) 10. Nf1 {[%emt 0:01:32]} Nc6 {[%emt 0:00:20]} 11. h4 {[%emt 0:01:45] [#]} a5 $146 {[%emt 0:03:23]} ({Predecessor:} 11... f6 12. exf6 Nxf6 13. c3 Bd7 14. Ng5 Nd8 15. Bh3 h6 16. Nf3 Nf7 17. Ne3 Rae8 {1-0 Guzman Cruz,J (1974)-Caballero,A (1701) Mexico City Independence Cup 11th 2022 (6)}) 12. N1h2 {[%emt 0:03:46]} f6 {[%emt 0:00:33]} 13. exf6 {[%emt 0:01:04]} Nxf6 {[%emt 0:00:09]} 14. Bh3 {[%emt 0:02:58]} Nd8 {[%emt 0:01:23]} (14... Bd6 $11) 15. Ne5 $14 {[%emt 0:05:20]} Ra6 {[%emt 0:06:54]} 16. c4 {[%emt 0:04:36]} Qc7 {[%emt 0:03:42]} 17. f4 {[%emt 0:15:21]} Nc6 {[%emt 0:15:55]} 18. Nhf3 g6 {[%emt 0:00:31]} 19. Ng5 {[%emt 0:01:30]} (19. Nxc6 {simplifies} Qxc6 20. Ng5 Qd6 21. Bd2) 19... Nd8 {[%emt 0:13:26]} 20. Re2 {White is much more active.} Nh5 21. Qe1 Ng7 {[%emt 0:00:00]} 22. cxd5 {[%emt 0:09:31]} Bxg5 {[%emt 0:15:46]} 23. d6 (23. hxg5 $142 exd5 24. Bg2) 23... Qxd6 {[%emt 0:00:00] Hoping for ...Bf6.} 24. hxg5 {[%emt 0:12:48]} b5 {[%emt 0:00:57]} (24... Nc6 $16 {might work better.}) 25. Be3 $18 {Black must now prevent Rc1.} Nf7 (25... Nc6 $142 26. Rc1 Nxe5 27. fxe5 Qd7) 26. Rc1 Nxe5 {[%emt 0:00:00]} 27. fxe5 {[%emt 0:19:48]} Qxe5 {[%emt 0:00:00]} (27... Qd7 28. Bxc5 Rf7) 28. Bxc5 {[%emt 0:00:00][%mdl 64] [#] Discovered Attack} Qb8 {[%emt 0:00:09]} 29. Bxf8 {[%emt 0:00:00]} Kxf8 {[%emt 0:00:11]} 30. Qf2+ {[%emt 0:00:00]} Kg8 {[%emt 0:00:23]} 31. Rf1 {[%emt 0:00:00][%csl Gf1][%cal Rf2f8]} Qa7 {[%emt 0:00:42]} 32. Qxa7 {[%emt 0:01:56]} Rxa7 {[%emt 0:00:08]} 33. Rc1 {[%emt 0:00:40]} Ra8 {[%emt 0:02:54]} (33... Bd7 34. Kf2 Kf8) 34. Rc7 {[%emt 0:01:45]} b4 {[%emt 0:02:04]} 35. Bg2 {[%emt 0:01:11]} Rb8 {[%emt 0:00:24]} 36. Rec2 {[%emt 0:01:47]} Ba6 {[%emt 0:00:12]} 37. Be4 {[%emt 0:00:24]} Nf5 {[%emt 0:02:48]} 38. Bxf5 {[%emt 0:03:06]} gxf5 {[%emt 0:02:05][%mdl 4096] Endgame KRR-KRB} 39. Rd7 {[%emt 0:00:43]} Bb5 {[%emt 0:02:52]} 40. Rd6 {[%emt 0:02:54]} Kf7 {[%emt 0:00:38]} 41. Rc7+ {[%emt 0:31:58][%mdl 64] [#] Deflection} Kg6 {[%emt 0:30:11]} 42. Rxe6+ {[%emt 0:00:52]} Kh5 {[%emt 0:03:46]} 43. Rxh7+ {[%emt 0:00:36]} Kg4 {[%emt 0:00:08]} 44. Kf2 {[%emt 0:04:26]} Rc8 {[%emt 0:00:21]} 45. g6 {[%emt 0:00:00][%cal Bg5g6,Bg6g7][%mdl 32] Threatening mate with g7.} Bxd3 {[%emt 0:00:00]} 46. g7 {[%emt 0:01:16][%cal Re6g6]} f4 {[%emt 0:00:00]} 47. Rh4+ {[%emt 0:00:00]} Kf5 {[%emt 0:00:00]} 48. Rd6 {[%emt 0:00:00] Weighted Error Value: White=0.33/Black=0.57} ({And not} 48. Rxf4+ Kxe6 49. Rf8 Rc2+ 50. Ke3 Bh7 $11) (48. Rh8 $142 fxg3+ 49. Kxg3 Rxh8 50. gxh8=Q Kxe6 51. Qd4) 1-0